[Event "Late-Titled-Tuesday-Blitz-March-05-2024"]
[Site "Chess.com"]
[Date "2024.03.05"]
[Round "10"]
[White "kids2010"]
[Black "MatthewG-p4p"]
[Result "1-0"]
[WhiteElo "2823"]
[BlackElo "2883"]
[TimeControl "180+1"]
[EndTime "15:51:38 PST"]
[Termination "kids2010 won on time"]

1. e4 {[%clk 0:03:00]} 1... e6 {[%clk 0:02:51.4]} 2. d3 {[%clk 0:02:56]} 2... d5
{[%clk 0:02:51.8]} 3. Qe2 {[%clk 0:02:55.9]} 3... Nf6 {[%clk 0:02:51.6]} 4. Nf3
{[%clk 0:02:56.1]} 4... c5 {[%clk 0:02:52.2]} 5. g3 {[%clk 0:02:56.3]} 5... Nc6
{[%clk 0:02:52.3]} 6. Bg2 {[%clk 0:02:56.7]} 6... Be7 {[%clk 0:02:52.7]} 7. O-O
{[%clk 0:02:56.9]} 7... O-O {[%clk 0:02:53.1]} 8. e5 {[%clk 0:02:57.4]} 8... Ne8
{[%clk 0:02:53.6]} 9. c4 {[%clk 0:02:58.2]} 9... Nc7 {[%clk 0:02:54.3]} 10. Nc3
{[%clk 0:02:57.5]} 10... Rb8 {[%clk 0:02:54.2]} 11. b3 {[%clk 0:02:56.1]} 11...
b5 {[%clk 0:02:54.2]} 12. Rd1 {[%clk 0:02:47.3]} 12... a5 {[%clk 0:02:51.6]} 13.
a4 {[%clk 0:02:44.3]} 13... bxc4 {[%clk 0:02:36.4]} 14. bxc4 {[%clk 0:02:43.5]}
14... Ba6 {[%clk 0:02:22.1]} 15. Nb5 {[%clk 0:02:42.6]} 15... Qd7 {[%clk
0:02:10.9]} 16. h4 {[%clk 0:02:38.7]} 16... Rfd8 {[%clk 0:02:09.1]} 17. Bg5
{[%clk 0:02:38.9]} 17... h6 {[%clk 0:02:05.9]} 18. Bxe7 {[%clk 0:02:38.7]} 18...
Nxe7 {[%clk 0:02:05.8]} 19. Qe3 {[%clk 0:02:34.2]} 19... d4 {[%clk 0:02:04.5]}
20. Qf4 {[%clk 0:02:26.8]} 20... Bb7 {[%clk 0:02:03.9]} 21. h5 {[%clk
0:02:24.6]} 21... Nc6 {[%clk 0:01:39]} 22. g4 {[%clk 0:02:14]} 22... Ne8 {[%clk
0:01:34]} 23. Re1 {[%clk 0:02:06.8]} 23... Nb4 {[%clk 0:01:31.1]} 24. Rad1
{[%clk 0:02:06.5]} 24... Qe7 {[%clk 0:01:24.7]} 25. g5 {[%clk 0:02:03.5]} 25...
Bxf3 {[%clk 0:01:24.5]} 26. Bxf3 {[%clk 0:01:58.1]} 26... Qxg5+ {[%clk
0:01:24.6]} 27. Qxg5 {[%clk 0:01:58.4]} 27... hxg5 {[%clk 0:01:25.5]} 28. Kh2
{[%clk 0:01:58.4]} 28... Kh7 {[%clk 0:01:23.2]} 29. Rg1 {[%clk 0:01:49.2]} 29...
Kh6 {[%clk 0:01:23.3]} 30. Rg3 {[%clk 0:01:38.1]} 30... f5 {[%clk 0:01:23.1]}
31. Be2 {[%clk 0:01:34.2]} 31... Nc6 {[%clk 0:01:17.8]} 32. f4 {[%clk
0:01:28.3]} 32... gxf4 {[%clk 0:01:15.3]} 33. Rg6+ {[%clk 0:01:27.6]} 33... Kh7
{[%clk 0:01:15]} 34. Rxe6 {[%clk 0:01:27.9]} 34... Nb4 {[%clk 0:00:56.8]} 35.
Rf1 {[%clk 0:01:26.9]} 35... Rd7 {[%clk 0:00:44.1]} 36. Rxf4 {[%clk 0:01:26.3]}
36... Nc7 {[%clk 0:00:43.3]} 37. Nxc7 {[%clk 0:00:35.6]} 37... Rxc7 {[%clk
0:00:44.2]} 38. Rxf5 {[%clk 0:00:35.9]} 38... Nc2 {[%clk 0:00:38.3]} 39. Bf3
{[%clk 0:00:35.8]} 39... Ne3 {[%clk 0:00:38.4]} 40. Rg5 {[%clk 0:00:36.1]} 40...
Rf7 {[%clk 0:00:32.2]} 41. Be4+ {[%clk 0:00:35.8]} 41... Kh8 {[%clk 0:00:32.9]}
42. h6 {[%clk 0:00:35.1]} 42... Rb2+ {[%clk 0:00:15.9]} 43. Kg3 {[%clk
0:00:34.9]} 43... Nf1+ {[%clk 0:00:16]} 44. Kg4 {[%clk 0:00:34.6]} 44... Ne3+
{[%clk 0:00:15.6]} 45. Kh5 {[%clk 0:00:34.2]} 45... Rh2+ {[%clk 0:00:14.5]} 46.
Kg6 {[%clk 0:00:34.2]} 46... Kg8 {[%clk 0:00:05]} 47. Re8+ {[%clk 0:00:32.5]}
47... Rf8 {[%clk 0:00:05.6]} 48. h7+ {[%clk 0:00:31]} 48... Rxh7 {[%clk
0:00:06.5]} 49. Rxf8+ {[%clk 0:00:31]} 49... Kxf8 {[%clk 0:00:06.6]} 50. Kxh7
{[%clk 0:00:31.8]} 1-0

[Event "Late-Titled-Tuesday-Blitz-March-05-2024"]
[Site "Chess.com"]
[Date "2024.03.05"]
[Round "10"]
[White "Zampronha1971"]
[Black "GoValya"]
[Result "0-1"]
[WhiteElo "2321"]
[BlackElo "2256"]
[TimeControl "180+1"]
[EndTime "15:51:44 PST"]
[Termination "GoValya won on time"]

1. e4 {[%clk 0:03:00.9]} 1... e6 {[%clk 0:02:58.2]} 2. d4 {[%clk 0:03:00.4]}
2... d5 {[%clk 0:02:58.8]} 3. Nc3 {[%clk 0:03:00.8]} 3... Bb4 {[%clk 0:02:57.8]}
4. e5 {[%clk 0:02:59.9]} 4... c5 {[%clk 0:02:57.3]} 5. a3 {[%clk 0:03:00.1]}
5... Bxc3+ {[%clk 0:02:57.1]} 6. bxc3 {[%clk 0:03:01]} 6... Qa5 {[%clk
0:02:57.1]} 7. Bd2 {[%clk 0:02:58.9]} 7... Nc6 {[%clk 0:02:56.2]} 8. Nf3 {[%clk
0:02:50]} 8... Qa4 {[%clk 0:02:51.2]} 9. Qb1 {[%clk 0:02:41.2]} 9... a6 {[%clk
0:02:29.5]} 10. Qb3 {[%clk 0:02:38.5]} 10... Qxb3 {[%clk 0:02:18.1]} 11. cxb3
{[%clk 0:02:39.4]} 11... cxd4 {[%clk 0:02:18.4]} 12. cxd4 {[%clk 0:02:38.6]}
12... Nge7 {[%clk 0:02:18]} 13. Bd3 {[%clk 0:02:37]} 13... Bd7 {[%clk
0:02:17.2]} 14. O-O {[%clk 0:02:34.2]} 14... O-O {[%clk 0:02:13.6]} 15. Rfc1
{[%clk 0:02:33.6]} 15... h6 {[%clk 0:02:08.6]} 16. b4 {[%clk 0:02:22.6]} 16...
g5 {[%clk 0:02:07.8]} 17. Bc3 {[%clk 0:02:17.8]} 17... f6 {[%clk 0:01:58.3]} 18.
exf6 {[%clk 0:02:15.2]} 18... Rxf6 {[%clk 0:01:59.2]} 19. Bb2 {[%clk 0:01:47.8]}
19... Raf8 {[%clk 0:01:57]} 20. Rc2 {[%clk 0:01:42]} 20... Nf5 {[%clk
0:01:46.4]} 21. Ne5 {[%clk 0:01:36.5]} 21... Be8 {[%clk 0:01:37.2]} 22. Nxc6
{[%clk 0:01:36]} 22... Bxc6 {[%clk 0:01:34]} 23. Bxa6 {[%clk 0:01:33.2]} 23...
Nd6 {[%clk 0:00:59.5]} 24. Bd3 {[%clk 0:01:25.3]} 24... Ba4 {[%clk 0:00:56.2]}
25. Re2 {[%clk 0:01:23.2]} 25... b5 {[%clk 0:00:55.3]} 26. Rae1 {[%clk
0:01:15.6]} 26... Nc4 {[%clk 0:00:51.4]} 27. Bc1 {[%clk 0:01:14.4]} 27... Kg7
{[%clk 0:00:35.4]} 28. f3 {[%clk 0:00:58.2]} 28... Kf7 {[%clk 0:00:26.2]} 29. h4
{[%clk 0:00:32.3]} 29... Rg8 {[%clk 0:00:24.2]} 30. hxg5 {[%clk 0:00:30.8]}
30... hxg5 {[%clk 0:00:23.2]} 31. Kh2 {[%clk 0:00:31.1]} 31... g4 {[%clk
0:00:20.5]} 32. fxg4 {[%clk 0:00:13.4]} 32... Rxg4 {[%clk 0:00:21.4]} 33. Kg1
{[%clk 0:00:08.4]} 33... Rxd4 {[%clk 0:00:21.1]} 34. Bxc4 {[%clk 0:00:06.4]}
34... Rxc4 {[%clk 0:00:20.4]} 35. Bb2 {[%clk 0:00:05.9]} 35... Rg6 {[%clk
0:00:20.4]} 36. Rf2+ {[%clk 0:00:06]} 36... Ke7 {[%clk 0:00:20.7]} 37. Ref1
{[%clk 0:00:05.6]} 37... Rcg4 {[%clk 0:00:19]} 38. Rf7+ {[%clk 0:00:05.4]} 38...
Kd6 {[%clk 0:00:19.4]} 39. R1f2 {[%clk 0:00:05.4]} 39... Bb3 {[%clk 0:00:17.4]}
40. Bc3 {[%clk 0:00:04.1]} 40... Bc4 {[%clk 0:00:17.4]} 41. Bd2 {[%clk
0:00:03.8]} 41... e5 {[%clk 0:00:17.6]} 42. R7f6+ {[%clk 0:00:02.6]} 42... Rxf6
{[%clk 0:00:17.7]} 43. Rxf6+ {[%clk 0:00:03.4]} 43... Ke7 {[%clk 0:00:18.1]} 44.
Rf5 {[%clk 0:00:03.3]} 44... Ke6 {[%clk 0:00:18]} 45. Rh5 {[%clk 0:00:03.1]}
45... Rd4 {[%clk 0:00:18]} 46. Bc3 {[%clk 0:00:03.3]} 46... Rd1+ {[%clk
0:00:16.1]} 47. Kh2 {[%clk 0:00:03.3]} 47... d4 {[%clk 0:00:16.6]} 0-1

[Event "Late-Titled-Tuesday-Blitz-March-05-2024"]
[Site "Chess.com"]
[Date "2024.03.05"]
[Round "10"]
[White "Zadar321"]
[Black "Arystanner"]
[Result "1-0"]
[WhiteElo "2565"]
[BlackElo "2842"]
[TimeControl "180+1"]
[EndTime "15:51:48 PST"]
[Termination "Zadar321 won on time"]

1. e4 {[%clk 0:02:59.8]} 1... c5 {[%clk 0:02:59.4]} 2. Nf3 {[%clk 0:02:59.7]}
2... e6 {[%clk 0:03:00.1]} 3. d4 {[%clk 0:02:56.4]} 3... cxd4 {[%clk 0:03:01]}
4. Nxd4 {[%clk 0:02:51.4]} 4... Nc6 {[%clk 0:03:01.2]} 5. Nc3 {[%clk 0:02:48.6]}
5... Qc7 {[%clk 0:03:01.1]} 6. Be3 {[%clk 0:02:46.4]} 6... a6 {[%clk 0:03:01.2]}
7. Bd3 {[%clk 0:02:43.8]} 7... Nf6 {[%clk 0:02:59]} 8. O-O {[%clk 0:02:41.5]}
8... Nxd4 {[%clk 0:02:55]} 9. Bxd4 {[%clk 0:02:39.3]} 9... Bc5 {[%clk
0:02:54.5]} 10. Bxc5 {[%clk 0:02:36.3]} 10... Qxc5 {[%clk 0:02:54.6]} 11. Kh1
{[%clk 0:02:33.7]} 11... b5 {[%clk 0:02:54.1]} 12. Qe2 {[%clk 0:02:26.4]} 12...
Bb7 {[%clk 0:02:54]} 13. e5 {[%clk 0:02:19.8]} 13... Qc6 {[%clk 0:02:49.1]} 14.
f3 {[%clk 0:02:15.8]} 14... Nd5 {[%clk 0:02:49.5]} 15. Nxd5 {[%clk 0:02:11.2]}
15... Qxd5 {[%clk 0:02:50]} 16. Qe3 {[%clk 0:02:06.8]} 16... Qc6 {[%clk
0:02:43.2]} 17. Rfc1 {[%clk 0:02:00.5]} 17... O-O {[%clk 0:02:41.7]} 18. c4
{[%clk 0:01:57.5]} 18... b4 {[%clk 0:02:41.9]} 19. Be4 {[%clk 0:01:49.5]} 19...
Qc7 {[%clk 0:02:41.9]} 20. Bxb7 {[%clk 0:01:44.1]} 20... Qxb7 {[%clk 0:02:42.8]}
21. Rd1 {[%clk 0:01:39.6]} 21... f6 {[%clk 0:02:30.2]} 22. Rd6 {[%clk
0:01:36.5]} 22... fxe5 {[%clk 0:02:28.3]} 23. Rad1 {[%clk 0:01:33]} 23... Rf7
{[%clk 0:02:14.6]} 24. Qxe5 {[%clk 0:01:32.2]} 24... a5 {[%clk 0:02:06.4]} 25.
Qd4 {[%clk 0:01:28.6]} 25... Ra7 {[%clk 0:02:03]} 26. b3 {[%clk 0:01:24.4]}
26... h6 {[%clk 0:02:03]} 27. h3 {[%clk 0:01:20.9]} 27... a4 {[%clk 0:02:01.1]}
28. c5 {[%clk 0:01:16.7]} 28... axb3 {[%clk 0:02:00.5]} 29. axb3 {[%clk
0:01:16.5]} 29... Qb5 {[%clk 0:01:31.5]} 30. Rc1 {[%clk 0:01:15.4]} 30... Qe2
{[%clk 0:01:26.6]} 31. Rg1 {[%clk 0:01:12.2]} 31... Rc7 {[%clk 0:01:15.4]} 32.
Qxb4 {[%clk 0:01:08.6]} 32... Kh7 {[%clk 0:01:07.5]} 33. Qc3 {[%clk 0:01:04.8]}
33... e5 {[%clk 0:00:57.8]} 34. Rd5 {[%clk 0:01:01.4]} 34... e4 {[%clk
0:00:55.8]} 35. Re1 {[%clk 0:00:58]} 35... Qf2 {[%clk 0:00:30.2]} 36. Rxe4
{[%clk 0:00:57.5]} 36... Ra7 {[%clk 0:00:29.7]} 37. Qd3 {[%clk 0:00:52.8]} 37...
g6 {[%clk 0:00:23.7]} 38. Kh2 {[%clk 0:00:49.3]} 38... Ra2 {[%clk 0:00:19]} 39.
Rg4 {[%clk 0:00:45.5]} 39... Qc2 {[%clk 0:00:14.3]} 40. Rxd7 {[%clk 0:00:40.7]}
40... Qxd3 {[%clk 0:00:07.5]} 41. Rxd3 {[%clk 0:00:39.9]} 41... Rb2 {[%clk
0:00:08.2]} 42. c6 {[%clk 0:00:31.9]} 42... h5 {[%clk 0:00:06.3]} 43. Rc4 {[%clk
0:00:28.1]} 43... Ra7 {[%clk 0:00:04.9]} 44. c7 {[%clk 0:00:24.5]} 44... Raa2
{[%clk 0:00:04.8]} 45. c8=Q {[%clk 0:00:15.6]} 45... Rxg2+ {[%clk 0:00:04]} 46.
Kh1 {[%clk 0:00:15.4]} 46... Rh2+ {[%clk 0:00:01.2]} 47. Kg1 {[%clk 0:00:15.7]}
1-0

[Event "Late-Titled-Tuesday-Blitz-March-05-2024"]
[Site "Chess.com"]
[Date "2024.03.05"]
[Round "10"]
[White "Rutricks"]
[Black "Squirlolz"]
[Result "0-1"]
[WhiteElo "2712"]
[BlackElo "2613"]
[TimeControl "180+1"]
[EndTime "15:51:49 PST"]
[Termination "Squirlolz won by checkmate"]

1. Nc3 {[%clk 0:03:00.9]} 1... d5 {[%clk 0:02:55.4]} 2. d4 {[%clk 0:03:00.9]}
2... e6 {[%clk 0:02:52.7]} 3. Bf4 {[%clk 0:03:01.5]} 3... Bb4 {[%clk 0:02:52.4]}
4. f3 {[%clk 0:02:58.3]} 4... c5 {[%clk 0:02:52]} 5. e3 {[%clk 0:02:58.8]} 5...
Nc6 {[%clk 0:02:50.2]} 6. Qd2 {[%clk 0:02:56.3]} 6... Qa5 {[%clk 0:02:44.5]} 7.
Nge2 {[%clk 0:02:54.4]} 7... Bd7 {[%clk 0:02:41.9]} 8. a3 {[%clk 0:02:53.9]}
8... cxd4 {[%clk 0:02:37.8]} 9. exd4 {[%clk 0:02:52.5]} 9... Rc8 {[%clk
0:02:37.5]} 10. Nc1 {[%clk 0:02:21]} 10... Bxc3 {[%clk 0:02:34.8]} 11. Qxc3
{[%clk 0:02:21.7]} 11... Qxc3+ {[%clk 0:02:31.2]} 12. bxc3 {[%clk 0:02:22.6]}
12... Na5 {[%clk 0:02:27.7]} 13. Nd3 {[%clk 0:02:17.8]} 13... b6 {[%clk
0:02:23.7]} 14. Bd2 {[%clk 0:01:54]} 14... Ne7 {[%clk 0:02:20.1]} 15. Ne5 {[%clk
0:01:54.1]} 15... Ba4 {[%clk 0:02:14]} 16. Bd3 {[%clk 0:01:50.7]} 16... f6
{[%clk 0:02:14.1]} 17. Ng4 {[%clk 0:01:51.3]} 17... Kd7 {[%clk 0:02:06]} 18. Rb1
{[%clk 0:01:51.6]} 18... Nc4 {[%clk 0:01:52.4]} 19. Rb4 {[%clk 0:01:45.3]} 19...
b5 {[%clk 0:01:52.7]} 20. Bc1 {[%clk 0:01:22.3]} 20... h5 {[%clk 0:01:40.5]} 21.
Ne3 {[%clk 0:00:52.3]} 21... Nxe3 {[%clk 0:01:37.4]} 22. Bxe3 {[%clk 0:00:53.2]}
22... Rxc3 {[%clk 0:01:37.4]} 23. Kd2 {[%clk 0:00:38.8]} 23... Rhc8 {[%clk
0:01:37]} 24. Rc1 {[%clk 0:00:36.2]} 24... a6 {[%clk 0:01:25.8]} 25. Rxa4 {[%clk
0:00:26.1]} 25... bxa4 {[%clk 0:01:24.7]} 26. Rb1 {[%clk 0:00:26.7]} 26... Rxa3
{[%clk 0:01:09.7]} 27. Rb6 {[%clk 0:00:26.8]} 27... Rc6 {[%clk 0:01:05.6]} 28.
Rb7+ {[%clk 0:00:27]} 28... Rc7 {[%clk 0:01:06.2]} 29. Rb6 {[%clk 0:00:27]}
29... Nc6 {[%clk 0:00:35.2]} 30. Bf4 {[%clk 0:00:20.7]} 30... e5 {[%clk
0:00:33.4]} 31. dxe5 {[%clk 0:00:18.7]} 31... fxe5 {[%clk 0:00:34.3]} 32. Be3
{[%clk 0:00:18]} 32... d4 {[%clk 0:00:31.1]} 33. Bg5 {[%clk 0:00:17.3]} 33... a5
{[%clk 0:00:26.9]} 34. Bb5 {[%clk 0:00:17.1]} 34... Kd6 {[%clk 0:00:23.9]} 35.
f4 {[%clk 0:00:16.6]} 35... Rc3 {[%clk 0:00:17]} 36. Bxa4 {[%clk 0:00:12.5]}
36... Kd5 {[%clk 0:00:11.8]} 37. Rb5+ {[%clk 0:00:11.6]} 37... Ke4 {[%clk
0:00:12.3]} 38. fxe5 {[%clk 0:00:05.1]} 38... Nb4 {[%clk 0:00:09.2]} 39. e6
{[%clk 0:00:04.2]} 39... Rxc2+ {[%clk 0:00:06.5]} 40. Bxc2+ {[%clk 0:00:04]}
40... Rxc2+ {[%clk 0:00:07.4]} 41. Kd1 {[%clk 0:00:04.9]} 41... Kd3 {[%clk
0:00:05.3]} 42. e7 {[%clk 0:00:04.9]} 42... Re2 {[%clk 0:00:05.5]} 43. Rb6
{[%clk 0:00:02.3]} 43... Re4 {[%clk 0:00:03]} 44. Rb5 {[%clk 0:00:02.9]} 44...
Na2 {[%clk 0:00:03.2]} 45. Rxa5 {[%clk 0:00:02.6]} 45... Nc3+ {[%clk 0:00:03.6]}
46. Kc1 {[%clk 0:00:03]} 46... Re2 {[%clk 0:00:03.3]} 47. Bf4 {[%clk 0:00:02.2]}
47... Rc2# {[%clk 0:00:03.1]} 0-1

[Event "Late-Titled-Tuesday-Blitz-March-05-2024"]
[Site "Chess.com"]
[Date "2024.03.05"]
[Round "10"]
[White "pr1105"]
[Black "yaguigor"]
[Result "1-0"]
[WhiteElo "2434"]
[BlackElo "2561"]
[TimeControl "180+1"]
[EndTime "15:51:53 PST"]
[Termination "pr1105 won by resignation"]

1. e4 {[%clk 0:03:00.9]} 1... d6 {[%clk 0:02:59.1]} 2. d4 {[%clk 0:03:01.2]}
2... Nf6 {[%clk 0:02:58.4]} 3. Nc3 {[%clk 0:03:01.5]} 3... c6 {[%clk 0:02:58.5]}
4. f4 {[%clk 0:03:01.9]} 4... Qa5 {[%clk 0:02:57.4]} 5. Bd3 {[%clk 0:02:57.5]}
5... e5 {[%clk 0:02:55.9]} 6. Nf3 {[%clk 0:02:54.8]} 6... Bg4 {[%clk 0:02:55.8]}
7. Be3 {[%clk 0:02:54.5]} 7... Nbd7 {[%clk 0:02:51.5]} 8. O-O {[%clk 0:02:50.5]}
8... Be7 {[%clk 0:02:16.1]} 9. Ne2 {[%clk 0:02:40.9]} 9... O-O {[%clk
0:02:05.8]} 10. c3 {[%clk 0:02:41.2]} 10... Rfe8 {[%clk 0:01:58.4]} 11. h3
{[%clk 0:02:40.3]} 11... Bxf3 {[%clk 0:01:56.5]} 12. Rxf3 {[%clk 0:02:41.2]}
12... Bf8 {[%clk 0:01:51.5]} 13. Ng3 {[%clk 0:02:32.1]} 13... c5 {[%clk
0:01:39.7]} 14. fxe5 {[%clk 0:02:14.2]} 14... cxd4 {[%clk 0:01:34]} 15. exf6
{[%clk 0:02:08.8]} 15... dxe3 {[%clk 0:01:33.4]} 16. fxg7 {[%clk 0:02:09.1]}
16... Bxg7 {[%clk 0:01:31.4]} 17. Nf5 {[%clk 0:01:53.1]} 17... Kh8 {[%clk
0:01:18]} 18. Nxd6 {[%clk 0:01:42.8]} 18... Rf8 {[%clk 0:01:16.7]} 19. Nxf7+
{[%clk 0:01:21.8]} 19... Kg8 {[%clk 0:01:05.2]} 20. Bc4 {[%clk 0:01:15.6]} 20...
Qc5 {[%clk 0:01:04]} 21. Qd5 {[%clk 0:00:44.9]} 21... Qxd5 {[%clk 0:00:55.3]}
22. Bxd5 {[%clk 0:00:45.8]} 22... Rab8 {[%clk 0:00:48]} 23. Re1 {[%clk
0:00:31.2]} 23... b5 {[%clk 0:00:46.6]} 24. a3 {[%clk 0:00:29.5]} 24... a5
{[%clk 0:00:45.6]} 25. Rexe3 {[%clk 0:00:29.2]} 25... b4 {[%clk 0:00:45.3]} 26.
axb4 {[%clk 0:00:25.3]} 26... axb4 {[%clk 0:00:44.9]} 27. cxb4 {[%clk
0:00:25.7]} 27... Bxb2 {[%clk 0:00:43.3]} 28. Rg3+ {[%clk 0:00:19.3]} 28... Bg7
{[%clk 0:00:41.5]} 29. Ne5+ {[%clk 0:00:19.7]} 29... Kh8 {[%clk 0:00:39.1]} 30.
Nxd7 {[%clk 0:00:20.3]} 30... Bd4 {[%clk 0:00:39]} 31. Nxb8 {[%clk 0:00:18.2]}
31... Rxb8 {[%clk 0:00:38.1]} 32. Kf1 {[%clk 0:00:17.7]} 32... Bxe3 {[%clk
0:00:36.6]} 33. Rxe3 {[%clk 0:00:18.6]} 33... Rxb4 {[%clk 0:00:36.4]} 34. Rg3
{[%clk 0:00:19.3]} 34... h5 {[%clk 0:00:34.8]} 35. Rg5 {[%clk 0:00:19.4]} 35...
h4 {[%clk 0:00:34.6]} 36. Rh5+ {[%clk 0:00:19.8]} 36... Kg7 {[%clk 0:00:34]} 37.
Rxh4 {[%clk 0:00:20.7]} 37... Kf6 {[%clk 0:00:34]} 38. Rg4 {[%clk 0:00:21.6]}
38... Ke5 {[%clk 0:00:33.9]} 39. Kf2 {[%clk 0:00:22]} 39... Rd4 {[%clk
0:00:32.3]} 40. Kg3 {[%clk 0:00:22.2]} 40... Rd3+ {[%clk 0:00:31.9]} 41. Kh2
{[%clk 0:00:22.2]} 41... Ra3 {[%clk 0:00:31.6]} 42. Rg3 {[%clk 0:00:22.7]} 42...
Ra1 {[%clk 0:00:30.4]} 43. h4 {[%clk 0:00:22.6]} 43... Ra7 {[%clk 0:00:27.3]}
44. h5 {[%clk 0:00:22.6]} 44... Rh7 {[%clk 0:00:27.1]} 45. Rh3 {[%clk 0:00:23]}
45... Rh6 {[%clk 0:00:26.6]} 46. g4 {[%clk 0:00:23.3]} 46... Kf4 {[%clk
0:00:27.1]} 47. Rg3 {[%clk 0:00:20.8]} 47... Kg5 {[%clk 0:00:26.8]} 48. Kh3
{[%clk 0:00:20.6]} 48... Rb6 {[%clk 0:00:25.4]} 49. Rf3 {[%clk 0:00:20.9]} 49...
Rb1 {[%clk 0:00:22.1]} 50. e5 {[%clk 0:00:19.1]} 50... Re1 {[%clk 0:00:19.4]}
51. e6 {[%clk 0:00:18.5]} 51... Rh1+ {[%clk 0:00:14.6]} 52. Kg2 {[%clk
0:00:18.6]} 52... Re1 {[%clk 0:00:14.6]} 53. Kf2 {[%clk 0:00:18.7]} 53... Rb1
{[%clk 0:00:12.1]} 54. e7 {[%clk 0:00:18.2]} 54... Rb2+ {[%clk 0:00:12.4]} 55.
Ke3 {[%clk 0:00:18.3]} 55... Rb8 {[%clk 0:00:12.3]} 56. Rf8 {[%clk 0:00:17.9]}
1-0

[Event "Late-Titled-Tuesday-Blitz-March-05-2024"]
[Site "Chess.com"]
[Date "2024.03.05"]
[Round "10"]
[White "VinzentSpitzl"]
[Black "Goryachkina"]
[Result "1/2-1/2"]
[WhiteElo "2550"]
[BlackElo "2684"]
[TimeControl "180+1"]
[EndTime "15:51:56 PST"]
[Termination "Game drawn by repetition"]

1. e4 {[%clk 0:03:00.9]} 1... c5 {[%clk 0:02:59]} 2. Nf3 {[%clk 0:03:01]} 2...
e6 {[%clk 0:02:59.4]} 3. d4 {[%clk 0:03:01.4]} 3... cxd4 {[%clk 0:02:59.6]} 4.
Nxd4 {[%clk 0:03:02.3]} 4... Nc6 {[%clk 0:02:59.6]} 5. Nc3 {[%clk 0:03:02.5]}
5... Bc5 {[%clk 0:02:59.9]} 6. Nb3 {[%clk 0:02:57.7]} 6... Bb4 {[%clk 0:03:00]}
7. Bd3 {[%clk 0:02:51.6]} 7... Nge7 {[%clk 0:02:58.6]} 8. O-O {[%clk 0:02:51.2]}
8... O-O {[%clk 0:02:58.6]} 9. Bd2 {[%clk 0:02:48.7]} 9... f5 {[%clk 0:02:57.1]}
10. a3 {[%clk 0:02:46.9]} 10... Bxc3 {[%clk 0:02:40.3]} 11. Bxc3 {[%clk
0:02:46.4]} 11... fxe4 {[%clk 0:02:40.1]} 12. Bxe4 {[%clk 0:02:46.5]} 12... Nf5
{[%clk 0:02:39.8]} 13. Qg4 {[%clk 0:02:40.8]} 13... Qe7 {[%clk 0:02:27.2]} 14.
Rfe1 {[%clk 0:02:34]} 14... Nh6 {[%clk 0:02:11.9]} 15. Qh5 {[%clk 0:02:28.5]}
15... Qf7 {[%clk 0:02:05]} 16. Qxf7+ {[%clk 0:02:17.4]} 16... Nxf7 {[%clk
0:02:04.8]} 17. Rad1 {[%clk 0:02:17]} 17... d5 {[%clk 0:01:56.5]} 18. Bf3 {[%clk
0:02:12.7]} 18... Ng5 {[%clk 0:01:44.7]} 19. Bg4 {[%clk 0:01:50.7]} 19... Ne4
{[%clk 0:01:25]} 20. f3 {[%clk 0:01:50.8]} 20... Nxc3 {[%clk 0:01:24.8]} 21.
bxc3 {[%clk 0:01:51.7]} 21... Kf7 {[%clk 0:01:16]} 22. Nc5 {[%clk 0:01:44.6]}
22... Re8 {[%clk 0:01:13]} 23. f4 {[%clk 0:01:40.5]} 23... b6 {[%clk 0:01:10.2]}
24. Nd3 {[%clk 0:01:26]} 24... Ba6 {[%clk 0:01:03.8]} 25. Ne5+ {[%clk
0:01:25.6]} 25... Nxe5 {[%clk 0:01:03.6]} 26. Rxe5 {[%clk 0:01:26.5]} 26... Re7
{[%clk 0:00:36.1]} 27. f5 {[%clk 0:01:14.4]} 27... exf5 {[%clk 0:00:29.7]} 28.
Rxf5+ {[%clk 0:01:14.4]} 28... Kg8 {[%clk 0:00:28.9]} 29. Rfxd5 {[%clk
0:01:12.6]} 29... Rae8 {[%clk 0:00:28.2]} 30. Rd7 {[%clk 0:01:07.3]} 30... g6
{[%clk 0:00:27.9]} 31. Rxe7 {[%clk 0:01:00.2]} 31... Rxe7 {[%clk 0:00:27.9]} 32.
Kf2 {[%clk 0:00:58.3]} 32... Kg7 {[%clk 0:00:25.9]} 33. Rd7 {[%clk 0:00:55.9]}
33... Rxd7 {[%clk 0:00:24.6]} 34. Bxd7 {[%clk 0:00:56.8]} 34... Kf6 {[%clk
0:00:24.9]} 35. Ke3 {[%clk 0:00:56.8]} 35... Ke5 {[%clk 0:00:25.3]} 36. g3
{[%clk 0:00:49]} 36... Bc4 {[%clk 0:00:17]} 37. h4 {[%clk 0:00:47.2]} 37... h6
{[%clk 0:00:16.6]} 38. Bg4 {[%clk 0:00:43.9]} 38... g5 {[%clk 0:00:16.4]} 39.
hxg5 {[%clk 0:00:43.3]} 39... hxg5 {[%clk 0:00:17.3]} 40. Bf3 {[%clk 0:00:42.7]}
40... Be6 {[%clk 0:00:16.8]} 41. Be2 {[%clk 0:00:41.4]} 41... Bf5 {[%clk
0:00:16.2]} 42. Bd3 {[%clk 0:00:41.5]} 42... Be6 {[%clk 0:00:16.8]} 43. Kf3
{[%clk 0:00:41.1]} 43... Bd7 {[%clk 0:00:16.5]} 44. Be4 {[%clk 0:00:37]} 44...
Be6 {[%clk 0:00:15.7]} 45. Ke3 {[%clk 0:00:37.1]} 45... Bd7 {[%clk 0:00:15.4]}
46. Bf3 {[%clk 0:00:37.1]} 46... Be6 {[%clk 0:00:15.5]} 47. Kd3 {[%clk
0:00:37.3]} 47... Bf5+ {[%clk 0:00:10.5]} 48. Kd2 {[%clk 0:00:30.8]} 48... Be6
{[%clk 0:00:10.2]} 49. Ke3 {[%clk 0:00:29.2]} 49... Bf5 {[%clk 0:00:10.2]} 50.
Bd1 {[%clk 0:00:28.7]} 50... Be6 {[%clk 0:00:10.2]} 51. Be2 {[%clk 0:00:28.9]}
51... Bd7 {[%clk 0:00:10.5]} 52. Bd3 {[%clk 0:00:28.8]} 52... Be6 {[%clk
0:00:10.7]} 53. Be4 {[%clk 0:00:27.9]} 53... Bd7 {[%clk 0:00:10.9]} 54. Kd3
{[%clk 0:00:26.8]} 54... Bb5+ {[%clk 0:00:10.6]} 55. Ke3 {[%clk 0:00:26.3]}
55... Bd7 {[%clk 0:00:10.8]} 1/2-1/2